Cogmind - Beta 16 @@@ ROGUE MODE // 2025.12.11 @ 21:06:33 Player: FR-13D Result: Destroyed by Y-45 Defender with Heavy Assault Rifle Performance ------------- Evolutions (0) 0 Regions Visited (3) 600 Robots Destroyed (33) 165 Value Destroyed (809) 809 Prototype IDs (2) 40 Alien Tech Used (0) 0 Bonus (0) 0 TOTAL SCORE: 1614 Bonus ------- None Cogmind --------- Core Integrity 0/250 Matter 300/300 Energy 265/265 System Corruption 0% Temperature Cool (0) Movement Rolling (155) Ox5 Location -9/Recycling Parts ------- > --- POWER (1) -------- Improved Ion Engine > --- PROPULSION (2) --- Light Treads Wheel > --- UTILITY (2) ------ High-capacity Storage Unit Core Shielding > --- WEAPON (2) ------- Particle Gun Battle Cannon > --- INVENTORY (20) --- Wheel Improved Heat Sink Improved Heat Sink Seismic Detector Core Shielding Core Shielding Core Shielding Light Armor Plating Makeshift Light Armor Plating Scrap Shield Particle Gun Light EM Pulse Cannon Light EM Pulse Cannon Shotgun Battle Rifle Battle Cannon Subdweller Shrapnel Launcher Subdweller Shrapnel Launcher Mining Laser Peak State ------------ > --- POWER ------------ Improved Ion Engine > --- PROPULSION ------- Light Treads Light Treads > --- UTILITY ---------- High-capacity Storage Unit Seismic Detector > --- WEAPON ----------- Particle Gun Shotgun > --- INVENTORY -------- Improved Ion Engine Wheel Wheel Wheel Wheel Heat Sink Improved Heat Sink Core Shielding Core Shielding Core Shielding Core Shielding Makeshift Light Armor Plating Particle Gun Particle Gun Light EM Pulse Cannon Light EM Pulse Cannon Shotgun Battle Cannon Subdweller Shrapnel Launcher Mining Laser [Rating: 13] Favorites ----------- Power Improved Ion Engine Engine Improved Ion Engine Propulsion Wheel Treads Light Treads Wheel Wheel Utility High-capacity Storage Unit Device Seismic Detector Storage High-capacity Storage Unit Protection Core Shielding Weapon Battle Cannon Energy Gun Particle Gun Ballistic Gun Shotgun Ballistic Cannon Battle Cannon Launcher Subdweller Shrapnel Launcher Special Weapon Mining Laser Build | -11 -10 -10 -9 ------- Run | Yrd Mat Sub Rec Slots Evolved . | . . . . Power . | . . . . Propulsion . | . . . . Utility . | . . . . Weapon . | . . . . Parts Attached 32 | 9 12 9 2 Power 4 | 1 2 1 . Engine 4 | 1 2 1 . Core . | . . . . Reactor . | . . . . Propulsion 11 | 4 3 2 2 Treads 3 | . 2 . 1 Leg . | . . . . Wheel 8 | 4 1 2 1 Hover . | . . . . Flight . | . . . . Utility 7 | 2 3 2 . Device 3 | 1 2 . . Storage 2 | 1 1 . . Processor . | . . . . Hackware . | . . . . Protection 2 | . . 2 . Artifact . | . . . . Weapon 10 | 2 4 4 . Energy Gun 4 | 2 1 1 . Energy Cannon . | . . . . Ballistic Gun 3 | . 2 1 . Ballistic Cannon 1 | . . 1 . Launcher 1 | . . 1 . Special Weapon 1 | . 1 . . Impact Weapon . | . . . . Slashing Weapon . | . . . . Piercing Weapon . | . . . . Special Melee Weapon . | . . . . Unidentified Prototypes . | . . . . Parts Lost 4 | . 2 2 . Power 2 | . 1 1 . Propulsion 1 | . . 1 . Utility . | . . . . Weapon 1 | . 1 . . Highest Loss Streak 2 | . 2 1 . To Critical Strikes . | . . . . Average Backups 17 | 4 13 19 18 Power . | . 1 1 . Propulsion 3 | 2 4 3 1 Utility 6 | . 3 7 8 Weapon 7 | 1 4 7 9 Tool/Special . | . . . . Unused Backups 19 | 2 2 2 13 Power 1 | . 1 . . Propulsion . | . . . . Utility 7 | . . . 7 Weapon 11 | 2 1 2 6 Tool/Special . | . . . . Average Slot Usage (%) 98 | . 98 98 100 Engine 12 | . 13 12 14 Treads 10 | . 6 10 14 Wheel 17 | . 21 17 14 Device 10 | . 14 12 . Storage 14 | . 14 14 14 Protection 3 | . . 1 14 Energy Gun 9 | . 14 6 14 Ballistic Gun 2 | . 6 2 . Ballistic Cannon 8 | . . 9 14 Launcher 3 | . . 6 . Special Weapon 3 | . 6 4 . Peak Build Rating 13 | 7 12 13 13 Average Rating 11 | 6 8 12 13 On Entrance 8 | . 7 12 13 Avg Prop Armor Cover (%) 11 | . . 11 12 Naked Turns . | . . . . Heaviest Build 59 | 13 54 59 54 Greatest Support 40 | 32 40 40 10 Greatest Overweight (x) 19 | . 2 19 5 Average Overweight (x) 3 | . 1 3 5 Largest Inventory Capacity 20 | 8 20 20 20 Average Capacity 19 | 7 18 20 20 Most Carried 20 | 8 20 20 20 Average Carried 17 | 4 13 19 19 Final Capacity 20 | 8 20 20 20 Final Carried 20 | 6 20 20 20 Class Distribution -------------------- 96% | Mutant 3% | Scavenger-Mutant Dominant Class ---------------- Mutant | -10/Materials Mutant | -10/Subcaves Mutant | -9/Recycling Resources | -11 -10 -10 -9 ----------- Run | Yrd Mat Sub Rec Matter Collected 1153 | 300 156 506 191 Remotely . | . . . . Salvage Created 903 | 217 277 233 176 Parts 53 | 20 15 14 4 Haulers Intercepted . | . . . . Recyclers Shooed 7 | . 2 . 5 Parts Field Recycled . | . . . . Retrieved Matter . | . . . . Parts Self-Destructed 27 | . . 27 . Prevented . | . . . . Parts Restored . | . . . . Kills | -11 -10 -10 -9 ------- Run | Yrd Mat Sub Rec Combat Hostiles Destroyed 22 | . 8 12 2 Melee 1 | . . 1 . Guns 14 | . 8 6 . Cannons 3 | . . 1 2 AOE 4 | . . 4 . Classes Destroyed 8 | 3 2 2 1 Worker 1 | 1 . . . Tunneler 6 | 6 . . . Recycler 2 | 1 . . 1 Turret 2 | . . 2 . Swarmer 6 | . 3 3 . Grunt 7 | . 5 2 . Sentry 2 | . . . 2 Subdweller 7 | . . 7 . Best Kill Streak 4 | 3 3 4 2 Combat Bots Only 3 | . 3 3 1 Max Kills in Single Turn 2 | 1 2 2 1 Gunslinging . | . . . . Exploded 2 | . . 2 . Melee 1 | . . 1 . Uniques/NPCs Destroyed . | . . . . Combat | -11 -10 -10 -9 -------- Run | Yrd Mat Sub Rec Hostile Shots Fired 116 | . 44 68 4 Missed 36 | . 14 20 2 Hits 80 | . 30 48 2 Projectile 80 | . 30 48 2 Damage Taken 1133 | . 423 682 28 Core 255 | . 73 171 11 Absorbed by Shields . | . . . . Redirected to Shielding 8 | . . 6 2 Core Remaining (%) 100 | 100 . . . Volleys Fired 138 | 21 49 58 10 Largest 2 | 2 2 2 2 Hottest 150 | 100 150 100 98 Shots Fired 199 | 40 74 73 12 Gun 124 | 40 54 21 9 Cannon 23 | . . 20 3 Launcher 8 | . . 8 . Special 44 | . 20 24 . Kinetic 67 | . 29 35 3 Thermal 132 | 40 45 38 9 Explosive . | . . . . Electromagnetic . | . . . . Robot Hit Streak 16 | 6 13 16 3 Robot Miss Streak 5 | 5 3 2 3 Penetration Max . | . . . . Secondary Targets 1 | . 1 . . Max Gunslinging Chain 1 | . 1 . . Shots Hit Robots 105 | 24 35 40 6 Core Hits 51 | 9 15 23 4 Critical Kills . | . . . . Critical Parts Destroyed . | . . . . Critical Strikes 6 | 2 3 1 . Burn 6 | 2 3 1 . Melee Attacks . | . . . . Impact . | . . . . Slashing . | . . . . Piercing . | . . . . Sneak Attacks . | . . . . Combat Hostiles . | . . . . Follow-up Attacks . | . . . . Damage Inflicted 2060 | 310 346 1303 101 Guns 1003 | 310 346 289 58 Cannons 428 | . . 385 43 Explosions 623 | . . 623 . Melee . | . . . . Ramming 6 | . . 6 . Kinetic 1349 | . 163 1143 43 Thermal 705 | 310 183 154 58 Explosive . | . . . . Electromagnetic . | . . . . Impact . | . . . . Slashing . | . . . . Piercing . | . . . . Highest Corruption . | . . . . Average Corruption . | . . . . Corruption Purged . | . . . . Corruption Blocked . | . . . . Overload Shots . | . . . . Overflow Damage 6 | . . 6 . Projectiles . | . . . . Explosions 6 | . . 6 . Melee . | . . . . Knockbacks 2 | . . 2 . Impact . | . . . . Kinetic 2 | . . 2 . Secondary . | . . . . Self-Inflicted Damage 24 | . . 24 . Shots 1 | . . 1 . Rammed 4 | . 1 3 . Targets Rammed 4 | . 1 3 . Kicked . | . . . . Crushed . | . . . . Highest Temperature 332 | 332 142 5 78 Average Temperature 62 | 128 25 5 37 Received Heat Transfer 372 | . 141 222 9 Effects 1 | 1 . . . Interference 1 | 1 . . . Siege Activations . | . . . . Martial Activations . | . . . . Shielding Activations . | . . . . Robots Disrupted . | . . . . Combat Hostiles . | . . . . Robots Corrupted . | . . . . Combat Hostiles . | . . . . Parts Fried . | . . . . Impact Corruptions . | . . . . Robots Melted . | . . . . Combat Hostiles . | . . . . Parts Melted 6 | 1 2 3 . Heat Transferred 2442 | 1073 777 444 148 Parts Sabotaged . | . . . . Parts Stolen . | . . . . Parts Stripped . | . . . . Power Chain Reactions . | . . . . Alert | -11 -10 -10 -9 ------- Run | Yrd Mat Sub Rec Maximum Alert Level . | . . . . Low Security (%) 100 | 100 100 . 100 Level 1 . | . . . . Level 2 . | . . . . Level 3 . | . . . . Level 4 . | . . . . Level 5 . | . . . . High Security . | . . . . Max Security . | . . . . Peak Influence 87 | 10 87 . 52 Initial 52 | . . . 52 Average 11 | 1 19 . 5 Influence Increases 570 | 40 281 180 69 Destroy 0b10 Robot/C 340 | . 160 140 40 Destroy 0b10 Robot/NC 45 | 40 . . 5 Destroy Leader 40 | . 30 10 . Successful Hack 36 | . 12 . 24 Destroy Structure 19 | . 19 . . Lose Combat Pursuer 90 | . 60 30 . Influence Decreases 570 | 40 281 70 179 Entered New Map 58 | . . . 58 Time Decay 492 | 40 261 70 121 Lost Part 20 | . 20 . . Squads Dispatched 3 | . 3 . . Investigation 1 | . 1 . . Extermination . | . . . . Reinforcement 2 | . 2 . . Assault . | . . . . Garrison . | . . . . Intercept . | . . . . Searches Triggered . | . . . . Construction Impeded . | . . . . Haulers Reinforced . | . . . . Active Scanning Responses . | . . . . Cargo Convoy Interrupts . | . . . . Stealth | -11 -10 -10 -9 --------- Run | Yrd Mat Sub Rec Distress Signals 3 | . 3 . . Communications Jammed . | . . . . Distress Signals . | . . . . Times Spotted 37 | . 19 16 2 Peak Tracking Total 5 | . 4 5 1 Tactical Retreats 3 | . 2 1 . Traps | -11 -10 -10 -9 ------- Run | Yrd Mat Sub Rec Traps Triggered 4 | . 3 1 . Indirectly . | . . . . Trap Hack Attempts . | . . . . Triggered . | . . . . Disarmed . | . . . . Reprogrammed . | . . . . Reused . | . . . . Traps Extracted . | . . . . Installed . | . . . . Triggered . | . . . . Machines | -11 -10 -10 -9 ---------- Run | Yrd Mat Sub Rec Machines Disabled 4 | . . 4 . Max in Single Turn 4 | . . 4 . Machines Repaired . | . . . . Machines Dismantled . | . . . . Machines Sabotaged . | . . . . Overloaded Fab Kills . | . . . . Hacking | -11 -10 -10 -9 --------- Run | Yrd Mat Sub Rec Machines Accessed 11 | . 4 2 5 Terminals 8 | . 3 . 5 Fabricators . | . . . . Repair Stations 1 | . 1 . . Recycling Units . | . . . . Scanalyzers . | . . . . Garrison Access . | . . . . Total Hacks 24 | . 10 2 12 Successful 14 | . 6 2 6 Failed 10 | . 4 . 6 Catastrophic 2 | . 1 . 1 Database Lockouts . | . . . . Manual 14 | . 4 . 10 Terminals 18 | . 6 . 12 Fabricators . | . . . . Repair Stations 4 | . 4 . . Recycling Units . | . . . . Scanalyzers . | . . . . Garrison Access . | . . . . Terminal Hacks 4 | . 1 2 1 Record 1 | . . 1 . Prototype ID Bank 1 | . 1 . . Open Door 1 | . . 1 . Zone Layout 1 | . . . 1 Fabricator Hacks . | . . . . Repair Station Hacks 3 | . 3 . . Scan Component 3 | . 3 . . Recycling Unit Hacks . | . . . . Scanalyzer . | . . . . Garrison Access Hacks . | . . . . Unauthorized Hacks 7 | . 2 . 5 Terminals 7 | . 2 . 5 Botnet 7 | . 2 . 5 Fabricators . | . . . . Repair Stations . | . . . . Recycling Units . | . . . . Scanalyzers . | . . . . Garrison Access . | . . . . Data Cores Recovered . | . . . . Used . | . . . . Hacking Detections 7 | . 4 . 3 Full Trace Events . | . . . . Feedback Events . | . . . . Feedback Blocked . | . . . . Robot Schematics Acquired . | . . . . Robots Built . | . . . . Authchips . | . . . . Time . | . . . . Total Robot Build Rating . | . . . . Part Schematics Acquired . | . . . . Parts Built . | . . . . Authchips . | . . . . Time . | . . . . Total Part Build Rating . | . . . . Part Studies Acquired . | . . . . Parts Repaired . | . . . . Time . | . . . . Parts Recycled . | . . . . Recycled Matter . | . . . . Retrieved Matter . | . . . . Retrieved Components . | . . . . Parts Scanalyzed . | . . . . Part Schematics Acquired . | . . . . Parts Damaged . | . . . . Bothacking | -11 -10 -10 -9 ------------ Run | Yrd Mat Sub Rec Used RIF Installer . | . . . . Robots Hacked . | . . . . Non-combat . | . . . . Combat . | . . . . Robot Hacks Applied . | . . . . Relay Couplers Released . | . . . . Fabnet Peak Effective % . | . . . . Robots Rewired . | . . . . Allies Hacked . | . . . . Hacks Repelled . | . . . . Allies | -11 -10 -10 -9 -------- Run | Yrd Mat Sub Rec Total Allies . | . . . . Largest Group . | . . . . Highest-Rated Group . | . . . . Highest-Rated Ally . | . . . . Total Orders . | . . . . Ally Attacks . | . . . . Total Damage . | . . . . Kills . | . . . . Allies Corrupted . | . . . . Allies Melted . | . . . . Intel | -11 -10 -10 -9 ------- Run | Yrd Mat Sub Rec Active Infowar (turns) 3352 | 121 781 2450 . Seismic 3352 | 121 781 2450 . Robot Analysis Total . | . . . . Derelict Logs Recovered 2 | . . 2 . Drone Launches . | . . . . Drone Recoveries . | . . . . Exploration | -11 -10 -10 -9 ------------- Run | Yrd Mat Sub Rec Turns Passed 4664 | 230 940 2701 793 Spaces Moved 2880 | 159 541 1686 494 Core 7 | 6 . 1 . Treads 77 | . 41 36 . Legs . | . . . . Wheels 2796 | 153 500 1649 494 Hover . | . . . . Flight . | . . . . Fastest Speed 50 | 50 80 110 155 Average Speed 134 | 89 114 138 155 Slowest Speed 1000 | 100 240 1000 155 Overloaded Moves . | . . . . Propulsion Burnouts . | . . . . Robots Hopped . | . . . . Potential Cave-ins . | . . . . Cave-ins Triggered . | . . . . Exploration Rate (%) 59 | 6 76 72 84 Regions Visited 3 Branch Regions 2 Pre-discovered Areas 2 | . . 2 . Known Exits Taken 1 | . . 1 . Unknown Exits Taken 2 | 1 1 . . Scrap Searched 1 | . . 1 . Spaces Dug 44 | . 19 25 . Terrain Destroyed 134 | . 19 115 . Melee . | . . . . Projectile 28 | . 19 9 . AOE 106 | . . 106 . Terrain Rammed . | . . . . Walls Destroyed . | . . . . Machines Disabled . | . . . . Actions | -11 -10 -10 -9 --------- Run | Yrd Mat Sub Rec Total 3380 | 203 749 1918 510 Wait 237 | . 111 125 1 Move 2877 | 158 540 1685 494 Hop . | . . . . Pick Up 36 | 9 17 9 1 Fast Attach 7 | 7 . . . Attach 4 | . 2 2 . Detach . | . . . . Swap 54 | 3 22 27 2 Drop 23 | 5 7 9 2 Fire 138 | 21 49 58 10 Melee . | . . . . Ram . | . . . . Kick . | . . . . Crush 4 | . 1 3 . Escape Stasis . | . . . . Rewire . | . . . . Trap . | . . . . Miscellaneous . | . . . . Route ------- -11/Scrapyard -10/Materials (discovered 4 exits: [*Mat x3] / *Sub) -10/Subcaves (discovered 2 exits: [*Mat] / *Rec) -9/Recycling (discovered 1 exit: [*Fac]) History --------- Turn | Location | Event 12 | -11/Scrapyard | Discovered new exit (range 16) 231 | -11/Scrapyard | Entered Materials 612 | -10/Materials | Discovered new exit (range 3) 722 | -10/Materials | Build established: Mutant 889 | -10/Materials | Discovered new exit (range 11) 1061 | -10/Materials | Discovered new exit (range 15) 1158 | -10/Materials | Discovered new exit (range 9) 1171 | -10/Materials | Entered Subcaves 1253 | -10/Subcaves | Shifting Twisted Machinery released Battle Cannon 1276 | -10/Subcaves | Shifting Twisted Machinery released Mak. Light Armor Plating 1283 | -10/Subcaves | Shifting Twisted Machinery released Riot Gun 1343 | -10/Subcaves | Shifting Twisted Machinery released Sub. Shrapnel Launcher 1477 | -10/Subcaves | Shifting Twisted Machinery released Sub. Monowheel 1993 | -10/Subcaves | Learned location of Storage (-9) 2315 | -10/Subcaves | Core integrity fell below 50% 2338 | -10/Subcaves | Discovered new exit (range 12) 2437 | -10/Subcaves | Identified exit to Recycling 2913 | -10/Subcaves | Learned location of Zion (-6) 2913 | -10/Subcaves | Met a Zionite searching for "candidates" 3510 | -10/Subcaves | Core integrity fell below 20% 3872 | -10/Subcaves | Entered Recycling 3930 | -9/Recycling | Scanned before Scraplab entrance 4591 | -9/Recycling | Discovered new exit (range 13) 4665 | -9/Recycling | Destroyed by Y-45 Defender with Heavy Assault Rifle Last Messages --------------- Testing... Terminal linked with 2 systems. Awaiting botnet instructions. 04551_ Connecting with Terminal... >>Trojan(Botnet) Trojan loaded successfully. Testing... Terminal linked with 3 systems. Awaiting botnet instructions. 04570_ Connecting with Terminal... >>Trojan(Botnet) Trojan loaded successfully. Testing... Terminal linked with 4 systems. Awaiting botnet instructions. >>Layout(Zone) Retrieving Zone 3V layout... Downloaded map data. 04591_ EXIT=FOUND 04665_ Y-45 Defender springs to life. Map ----- +----------------------------------------------------+ | ?????????????????????????????????????????????????? | | ?????????????????????????????????????????????????? | | ?????????????????????????????????????????????????? | | ?????????????????????????????????????????????????? | | ?????????????????????????????????????????????????? | | ?????????????????????????????????????????????????? | | ?????????????????????????????????????????????????? | | ?????????????????????????????????????????????????? | | ?????????????????????????????????????????????????? | | ?????????????????????????????????????????????????? | | ?????????????????????????????????????????????????? | | ????????????????????##???????????????????????????? | | ?????????????????###Y#####???????????????????????? | | ?????????????????# +???????????????????????? | | ?????????????????# #???????????????????????? | | #?????#####??????# ########????????????????? | | #??#### # ###????# #??????????????? | | #??# #????# #??????????????? | | #### ###### #??????????????? | | ==## + #??????????????? | | = ## ###### """ """ #??????????????? | | =## #????# """ """ #?????????##???? | | #### #????# """ """ #?????????# #### | | #??# #????# """ """ #?????????# | | #??# ###### #?????????# | | ##?# + @ +?????????# | | #####+########## ############# #?????????# | | #????# #???###?????# #?????????# | | #????# ##### #####?# #?????????# | | #??### ## #?# #?????????# | | ####### ####T# ## ### #?????????# | | ######?# ## + #?????????###### | | ?#"""#?# ## ### #??????????????# | | ##"T"### """"" ## #?# #???############ | | # """"" ## #?# #???# | | "T" + """""" ## #?# #???# | | # """" ## #?# ##### | | # # #?# + | | + + #?# ##### | | """ # # #?# #???########## # | | """ #########+##### #?# #??????????????? | | """ #??# ### ### #??????????????? | | #??# ## #!! ###????????????? | | ########?## ### #!! #????????????? | | ?????????# #?# #!! #????????????? | | ?????????## #?# ### #????????????? | | ??????????# #?# #?# % #????????????? | | ??????????##########?##########?# #????????????? | | ????????????????##??????????????# #????????????? | | ?????????????### ##?????????????# %##???????????? | +----------------------------------------------------+ Best States ------------- Heat Dissipation 35 Energy Generation 12 Energy Capacity 265 Matter Stores 300 Matter Capacity 300 Sight Range 16 Terrain Scan Density 10 Core Shielding 20 Evasion (%) 44 Recoil Reduction 2 Item Schematics ----------------- None Robot Schematics ------------------ None Fabricated ------------ Nothing Repaired ---------- Nothing Studied --------- None Alien Tech Used ----------------- None Achievements -------------- None Challenges ------------ None Game ------ Seed RiotThrowingMagmablaster Manual? 0 Play Time 00:27:37 Cumulative 109.1 hours Start 2025.12.11 @ 20:40:43 End 2025.12.11 @ 21:06:33 Sessions 1 Manual Loads 0 Difficulty Rogue Special Mode None Game No. 114 Rogue 114 Adventurer 0 Explorer 0 Win Type - Total 0 Types 0/0/0/0/0/0/0/0/0/0 Lore% 62 Gallery% 48 Achievement% 39 Wizard Run 0 Options --------- Layout 0 ASCII 0 Keyboard 1 Movement Vi Keybinds 0 Fullscreen 2 Font 18/SmallcapsGlow Map View 76x50 Zoom Use 0% Tactical HUD 1 Map Filters NONE Filters NONE Steam 1 RUN: dd3a64f5-eac9-4be5-927b-e943cf0a8624